bitfinex-derivatives/quotes_BTCF0:USTF0_20250101
["timestamp","ask_amount","ask_price","bid_price","bid_amount"]
[1735690498650,0.6435829,93741.0,93740.0,0.02624379]
[1735690498844,0.6455829,93741.0,93740.0,0.02724379]
[1735690499444,0.6455829,93741.0,93740.0,0.002]
[1735690501455,0.053449,93738.0,93737.0,0.414249]
[1735690501954,0.16618669,93738.0,93737.0,0.35406735]
[1735690502757,0.16618669,93738.0,93737.0,0.35506735]
[1735690502758,0.16818669,93738.0,93737.0,0.35506735]
[1735690506152,0.34588669,93738.0,93737.0,0.35506735]
[1735690506553,0.34588669,93738.0,93724.0,0.3608]
[1735690506761,0.053456,93725.0,93724.0,0.3608]
[1735690507260,0.16795038,93725.0,93724.0,0.3608]
[1735690508454,0.17095038,93725.0,93724.0,0.3608]
[1735690509153,0.11749438,93725.0,93720.0,0.053459]
[1735690509354,0.11749438,93725.0,93706.0,0.3608]
[1735690509355,0.1777,93720.0,93706.0,0.3608]
[1735690509558,0.053458,93721.0,93706.0,0.31590841]
[1735690509559,0.231166,93707.0,93706.0,0.31590841]
[1735690509757,0.710046,93707.0,93706.0,0.31590841]
[1735690509963,0.82300731,93707.0,93706.0,0.31590841]
[1735690511167,0.82300731,93707.0,93706.0,0.31990841]
[1735690511353,0.64530731,93707.0,93706.0,0.31990841]
[1735690511550,0.59584131,93707.0,93706.0,0.31690841]
[1735690511754,0.004,93707.0,93706.0,0.37037541]
[1735690513862,0.005,93707.0,93706.0,0.36937541]
[1735690514360,0.004,93707.0,93706.0,0.36937541]
[1735690514866,0.002,93707.0,93706.0,0.4424606]
[1735690515762,0.055466,93707.0,93706.0,0.3889936]
[1735690516368,0.16822955,93707.0,93706.0,0.4424606]
[1735690517065,0.055466,93707.0,93706.0,0.4424606]
[1735690517257,0.002,93707.0,93706.0,0.4424606]
[1735690519363,0.002,93707.0,93706.0,0.4269006]
[1735690522265,0.0016016,93726.0,93725.0,0.053456]
[1735690522472,0.00056001,93732.0,93725.0,0.3877632]
[1735690522655,0.053448,93739.0,93738.0,0.053449]
[1735690522870,0.1741101,93739.0,93738.0,0.053449]
[1735690524866,0.1751101,93739.0,93738.0,0.053449]
[1735690525161,0.1266621,93739.0,93738.0,0.054449]
[1735690525367,0.006,93739.0,93738.0,0.054449]
[1735690528059,0.053444,93747.0,93738.0,0.053449]
[1735690528259,0.053444,93747.0,93746.0,0.053444]
[1735690529074,0.053441,93752.0,93749.0,0.053443]
[1735690530761,0.47996,93750.0,93749.0,0.053443]
[1735690530966,0.48496,93750.0,93749.0,0.054443]
[1735690532062,0.47996,93750.0,93749.0,0.053443]
[1735690532266,0.48496,93750.0,93749.0,0.054443]
[1735690532664,0.006,93750.0,93749.0,0.054443]
[1735690534574,0.053433,93767.0,93766.0,0.053433]
[1735690534771,0.053433,93767.0,93766.0,0.02735562]
[1735690535577,0.00160051,93769.0,93768.0,0.053432]
[1735690537773,0.10704,93771.0,93770.0,0.053429]
[1735690537774,0.05343,93771.0,93770.0,0.053429]
[1735690538180,0.39591829,93775.0,93768.0,0.001]
[1735690538379,0.39591829,93775.0,93774.0,0.053428]
[1735690538680,0.053422,93786.0,93782.0,0.053424]
[1735690538871,0.15361,93783.0,93782.0,0.053424]
[1735690539975,0.207033,93783.0,93782.0,0.053424]
[1735690540774,0.207033,93783.0,93782.0,0.054424]
[1735690540775,0.208033,93783.0,93782.0,0.054424]
[1735690540975,0.208033,93783.0,93782.0,0.055424]
[1735690543282,0.15461,93783.0,93782.0,0.416224]
[1735690551484,0.208033,93783.0,93782.0,0.3628]
[1735690552682,0.208033,93783.0,93782.0,0.416224]
[1735690556883,0.15461,93783.0,93782.0,0.416224]
[1735690564191,0.208034,93783.0,93782.0,0.416224]
[1735690565393,0.32157968,93783.0,93782.0,0.055424]
[1735690565691,0.32157968,93783.0,93782.0,0.002]
[1735690566097,0.40971043,93783.0,93782.0,0.002]
[1735690569806,0.40971043,93783.0,93782.0,0.055424]
[1735690570101,0.24274075,93783.0,93782.0,0.055424]
[1735690572708,0.24274075,93783.0,93782.0,0.12231543]
[1735690577512,0.28767274,93796.0,93795.0,0.053417]
[1735690577702,0.1,93800.0,93799.0,0.053414]
[1735690578406,0.31963638,93801.0,93796.0,0.0885]
[1735690578407,0.31963638,93801.0,93800.0,0.053414]
[1735690578614,0.37324638,93801.0,93800.0,0.053414]
[1735690579505,0.05361,93801.0,93800.0,0.053414]
[1735690579812,0.05361,93801.0,93800.0,0.054414]
[1735690580202,0.096,93813.0,93800.0,0.054414]
[1735690580203,0.00056001,93828.0,93800.0,0.301]
[1735690580408,0.10060001,93829.0,93828.0,0.053398]
[1735690580611,0.15300652,93829.0,93828.0,0.053398]
[1735690581311,0.20661652,93829.0,93828.0,0.053398]
[1735690581514,0.20661652,93829.0,93828.0,0.062398]
[1735690581714,0.15361,93829.0,93828.0,0.062398]
[1735690582018,0.0919,93849.0,93828.0,0.062398]
[1735690582019,0.25541928,93835.0,93834.0,0.053395]
[1735690583118,0.0919,93849.0,93834.0,0.053395]
[1735690583316,0.0015988,93857.0,93851.0,0.053385]
[1735690584017,0.0015988,93857.0,93844.0,0.3608]
[1735690584211,0.053387,93848.0,93847.0,0.053388]
[1735690585811,0.053387,93848.0,93847.0,0.054388]
[1735690586518,0.053384,93853.0,93851.0,0.053385]
[1735690587621,0.053384,93853.0,93851.0,0.054385]
[1735690587820,0.0015988,93857.0,93851.0,0.054385]
[1735690588218,0.0015988,93857.0,93851.0,0.055385]
[1735690588625,0.0549808,93857.0,93851.0,0.055385]
[1735690588919,0.053382,93856.0,93851.0,0.055385]
[1735690589315,0.053384,93854.0,93851.0,0.055385]
[1735690589516,0.153384,93852.0,93851.0,0.055385]
[1735690590210,0.1,93852.0,93851.0,0.055385]
[1735690593616,0.1,93852.0,93851.0,0.054385]
[1735690593922,0.1,93852.0,93851.0,0.055385]
[1735690596016,0.1,93852.0,93851.0,0.053385]
[1735690596217,0.1,93852.0,93851.0,0.055385]
[1735690596917,0.1,93852.0,93851.0,0.054385]
[1735690599818,0.1,93852.0,93851.0,0.415185]
[1735690602822,0.05468556,93867.0,93851.0,0.415185]
[1735690602823,0.053375,93868.0,93867.0,0.053376]
[1735690604522,0.053375,93868.0,93867.0,0.054376]
[1735690604718,0.053375,93868.0,93867.0,0.055376]
[1735690605929,0.231075,93868.0,93867.0,0.055376]
[1735690606227,0.053375,93868.0,93867.0,0.055376]
[1735690607417,0.3608,93869.0,93867.0,0.002]
[1735690607629,0.053378,93864.0,93863.0,0.053378]
[1735690608219,0.053384,93854.0,93848.0,0.00159842]
[1735690608630,0.053384,93852.0,93851.0,0.053384]
[1735690609028,0.16812646,93852.0,93851.0,0.053384]
[1735690610126,0.16912646,93852.0,93851.0,0.053384]
[1735690610631,0.053386,93849.0,93848.0,0.00259842]
[1735690610934,0.053386,93849.0,93848.0,0.00159842]
[1735690611136,0.053386,93849.0,93848.0,0.05498542]
[1735690612549,0.055386,93849.0,93848.0,0.05598542]
[1735690613330,0.002,93849.0,93848.0,0.05598542]
[1735690613532,0.08797741,93849.0,93848.0,0.05598542]
[1735690613736,0.08897741,93849.0,93848.0,0.05598542]
[1735690614629,0.003,93849.0,93848.0,0.05598542]
[1735690616942,0.002,93849.0,93848.0,0.05598542]
[1735690618740,0.0889,93874.0,93848.0,0.05598542]
[1735690618933,0.053377,93866.0,93865.0,0.053376]
[1735690620136,0.054377,93866.0,93865.0,0.054376]
[1735690623937,0.053377,93866.0,93865.0,0.054376]
[1735690624141,0.053377,93866.0,93854.0,0.053383]
[1735690624331,0.053383,93855.0,93854.0,0.053383]
[1735690625045,0.053386,93850.0,93849.0,0.053386]
[1735690626641,0.13937621,93850.0,93849.0,0.053386]
[1735690627042,0.14037621,93850.0,93849.0,0.053386]
[1735690630145,0.054386,93850.0,93849.0,0.053386]
[1735690632844,0.001,93850.0,93849.0,0.053386]
[1735690635056,0.09832974,93857.0,93856.0,0.053382]
[1735690636644,0.09832974,93867.0,93866.0,0.053376]
[1735690637756,0.31955986,93870.0,93866.0,0.053376]
[1735690637757,0.31955986,93870.0,93868.0,0.053375]
[1735690639445,0.31955986,93870.0,93866.0,0.0914]
[1735690639446,0.31955986,93870.0,93869.0,0.053375]
[1735690640244,0.11538598,93884.0,93883.0,0.053367]
[1735690640442,0.11538598,93888.0,93883.0,0.3608]
[1735690640753,0.11538598,93888.0,93887.0,0.053365]
[1735690641259,0.11538598,93888.0,93887.0,0.05327722]
[1735690641952,0.00159803,93896.0,93895.0,0.05336]
[1735690643541,0.05495703,93896.0,93895.0,0.05336]
[1735690643753,0.05595703,93896.0,93895.0,0.05536]
[1735690644450,0.05595703,93896.0,93895.0,0.002]
[1735690644666,0.05495703,93896.0,93895.0,0.001]
[1735690644864,0.05595703,93896.0,93895.0,0.002]
[1735690648860,0.05595703,93896.0,93895.0,0.05536]
[1735690650875,0.00259803,93896.0,93895.0,0.05536]
[1735690653070,0.11955659,93896.0,93884.0,0.03865524]
[1735690653383,0.05336,93895.0,93886.0,0.053364]
[1735690653680,0.053365,93887.0,93886.0,0.053364]
[1735690653871,0.053365,93887.0,93883.0,0.3608]
[1735690653872,0.12277743,93894.0,93883.0,0.3608]
[1735690654069,0.50259803,93896.0,93883.0,0.3608]
[1735690654070,0.053366,93884.0,93883.0,0.3608]
[1735690655674,0.053366,93884.0,93883.0,0.414166]
[1735690656072,0.053366,93884.0,93883.0,0.415166]
[1735690656681,0.055366,93884.0,93883.0,0.415166]
[1735690657580,0.056366,93884.0,93883.0,0.415166]
[1735690661184,0.056366,93884.0,93883.0,0.054366]
[1735690665089,0.003,93884.0,93883.0,0.054366]
[1735690667393,0.002,93884.0,93883.0,0.054366]
[1735690667696,0.003,93884.0,93883.0,0.054366]
[1735690669487,0.14297888,93900.0,93883.0,0.054366]
[1735690669795,0.14297888,93900.0,93895.0,0.05336]
[1735690670497,0.00359803,93896.0,93895.0,0.05336]
[1735690670697,0.00459803,93896.0,93895.0,0.05336]
[1735690672092,0.00259803,93896.0,93895.0,0.05436]
[1735690676296,0.00259803,93896.0,93895.0,0.08220239]
[1735690677498,1e-08,93896.0,93895.0,0.08220239]
[1735690678797,1e-08,93896.0,93895.0,0.44300239]
[1735690682801,1e-08,93896.0,93895.0,0.08220239]
[1735690683004,1e-08,93896.0,93895.0,0.44300239]
[1735690683503,1e-08,93896.0,93895.0,0.41516]
[1735690683701,1e-08,93896.0,93895.0,0.05436]
[1735690684205,0.05335901,93896.0,93895.0,0.05436]
[1735690685706,0.05335901,93896.0,93891.0,0.3608]
[1735690685896,0.16590094,93896.0,93891.0,0.3608]
[1735690686093,0.1777,93895.0,93891.0,0.3608]
[1735690686298,0.053361,93892.0,93891.0,0.3608]
[1735690686802,0.16873859,93892.0,93891.0,0.3608]
[1735690688098,0.053368,93881.0,93870.0,0.3608]
[1735690688298,0.05337,93878.0,93877.0,0.053369]
[1735690689212,0.0871,93879.0,93878.0,0.053369]
[1735690691314,0.0881,93879.0,93878.0,0.053369]
[1735690691813,0.0871,93879.0,93878.0,0.053369]
[1735690692013,0.0881,93879.0,93878.0,0.08106947]
[1735690692605,0.0881,93879.0,93878.0,0.14368077]
[1735690693011,0.0881,93879.0,93878.0,0.1159803]
[1735690693202,0.0881,93879.0,93878.0,0.06158126]
[1735690693713,0.0881,93879.0,93878.0,0.11495026]
[1735690693905,0.141469,93879.0,93878.0,0.11495026]
[1735690694607,0.0881,93879.0,93878.0,0.11495026]
[1735690696505,0.0881,93879.0,93878.0,0.47575026]
[1735690696706,0.001,93879.0,93878.0,0.47575026]
[1735690698616,0.0919,93880.0,93878.0,0.42238126]
[1735690698827,0.001,93879.0,93878.0,0.47575026]
[1735690699819,0.001,93880.0,93879.0,0.053369]
[1735690700417,0.001,93879.0,93878.0,0.47635026]
[1735690700720,0.0902,93879.0,93878.0,0.47575026]
[1735690701922,0.0892,93879.0,93878.0,0.47575026]
[1735690702616,0.0902,93879.0,93878.0,0.47575026]
[1735690703822,0.001,93879.0,93878.0,0.47575026]
[1735690706720,0.053359,93896.0,93878.0,0.42238126]
[1735690706912,0.14361888,93900.0,93899.0,0.053357]
[1735690707107,0.14297888,93900.0,93899.0,0.053357]
[1735690708122,0.3608,93901.0,93900.0,0.053356]
[1735690708829,0.414157,93901.0,93900.0,0.053356]
[1735690709525,0.414157,93901.0,93900.0,0.054356]
[1735690711230,0.4545,93909.0,93900.0,0.001]
[1735690711422,0.3608,93909.0,93908.0,0.053352]
[1735690712722,0.11482497,93918.0,93908.0,0.053352]
[1735690712924,0.11482497,93918.0,93914.0,0.053349]
[1735690714031,0.11482497,93918.0,93917.0,0.053347]
[1735690714830,0.05344,93924.0,93923.0,0.053344]
[1735690715233,0.22936566,93924.0,93923.0,0.053344]
[1735690715831,0.17602266,93924.0,93917.0,0.002]
[1735690716129,0.053346,93918.0,93917.0,0.001]
[1735690716331,0.3608,93921.0,93900.0,0.10977949]
[1735690716545,0.053349,93916.0,93915.0,0.053348]
[1735690718534,0.053349,93916.0,93915.0,0.054348]
[1735690719435,0.053349,93916.0,93915.0,0.055348]
[1735690735555,0.053349,93916.0,93915.0,0.002]
[1735690736654,0.5,93915.0,93904.0,0.053355]
[1735690736844,0.053354,93905.0,93904.0,0.053355]
[1735690738142,0.053354,93905.0,93904.0,0.054355]
[1735690749653,0.053352,93910.0,93909.0,0.053351]
[1735690750055,0.053352,93910.0,93904.0,0.142755]
[1735690750659,0.053352,93910.0,93909.0,0.053351]
[1735690750862,0.054352,93910.0,93909.0,0.054351]
[1735690751263,0.053352,93910.0,93909.0,0.053351]
[1735690751453,0.054352,93910.0,93909.0,0.053351]
[1735690751959,0.054352,93910.0,93909.0,0.054351]
[1735690752363,0.054352,93910.0,93909.0,0.055351]
[1735690752555,0.054352,93910.0,93909.0,0.11598496]
[1735690752750,0.054352,93910.0,93909.0,0.06263396]
[1735690754158,0.37352934,93910.0,93909.0,0.06263396]
[1735690754355,0.053352,93910.0,93909.0,0.06263396]
[1735690755159,0.053356,93902.0,93881.0,0.09]
[1735690755463,0.053367,93886.0,93885.0,0.053364]
[1735690757561,0.054367,93886.0,93885.0,0.054364]
[1735690758469,0.055367,93886.0,93885.0,0.054364]
[1735690760172,0.053359,93897.0,93885.0,0.054364]
[1735690760373,0.0967,93909.0,93896.0,0.053359]
[1735690760569,0.053356,93901.0,93900.0,0.053354]
[1735690763268,0.053356,93901.0,93900.0,0.054354]
[1735690765372,0.553356,93901.0,93900.0,0.054354]
[1735690765572,0.053356,93901.0,93900.0,0.054354]
[1735690766075,0.230556,93901.0,93900.0,0.054354]
[1735690766274,0.553356,93901.0,93900.0,0.054354]
[1735690766487,0.553356,93901.0,93900.0,0.001]
[1735690766785,0.16461998,93901.0,93900.0,0.001]
[1735690768890,0.66461998,93901.0,93900.0,0.001]
[1735690769783,0.16461998,93901.0,93900.0,0.001]
[1735690771585,0.16461998,93901.0,93900.0,0.00079149]
[1735690772393,0.66461998,93901.0,93900.0,0.0006031]
[1735690772890,0.16461998,93901.0,93900.0,0.0006031]
[1735690773091,0.66461998,93901.0,93900.0,0.0006031]
[1735690773386,0.16461998,93901.0,93900.0,0.0006031]
[1735690773697,0.66461998,93901.0,93900.0,0.00034129]
[1735690773993,0.16461998,93901.0,93900.0,0.00034129]
[1735690774390,0.61126398,93901.0,93880.0,0.3608]
[1735690774592,0.053367,93885.0,93884.0,0.053365]
[1735690776092,0.054367,93885.0,93884.0,0.053365]
[1735690784297,0.553365,93882.0,93870.0,0.01506566]
[1735690784484,0.053371,93871.0,93870.0,0.01506566]
[1735690785595,0.3608,93877.0,93870.0,0.06943666]
[1735690785790,0.3608,93877.0,93876.0,0.053368]
[1735690786288,0.414167,93877.0,93876.0,0.053368]
[1735690787098,0.415167,93877.0,93876.0,0.053368]
[1735690788193,0.05337,93871.0,93870.0,0.06843666]
[1735690789499,0.05337,93871.0,93870.0,0.07043666]
[1735690790695,0.053368,93875.0,93874.0,0.053368]
[1735690792400,0.053365,93882.0,93881.0,0.053365]
[1735690793693,0.054365,93882.0,93881.0,0.053365]
[1735690795005,0.053365,93882.0,93881.0,0.053365]
[1735690795191,0.054365,93882.0,93881.0,0.053365]
[1735690802310,0.001,93882.0,93881.0,0.414165]
[1735690803011,0.053356,93896.0,93895.0,0.053357]
[1735690806017,0.053356,93896.0,93895.0,0.054357]
[1735690806616,0.053356,93896.0,93895.0,0.001]
[1735690807209,0.053356,93896.0,93895.0,0.054357]
[1735690810316,0.053356,93896.0,93895.0,0.001]
[1735690811818,0.053356,93896.0,93895.0,0.00078845]
[1735690813812,0.053356,93896.0,93895.0,0.05414545]
[1735690817715,0.053356,93896.0,93895.0,0.00078845]
[1735690820817,0.230556,93896.0,93895.0,0.00078845]
[1735690821032,0.00056001,93901.0,93900.0,0.053354]
[1735690821217,0.00056001,93901.0,93895.0,0.00078845]
[1735690821218,0.55494384,93915.0,93914.0,0.053346]
[1735690822424,0.55494384,93915.0,93914.0,0.054346]
[1735690823133,0.55494384,93915.0,93914.0,0.055346]
[1735690830939,0.73214384,93915.0,93914.0,0.055346]
[1735690831935,0.73214384,93915.0,93914.0,0.054346]
[1735690832439,0.73214384,93915.0,93914.0,0.055346]
[1735690832939,0.73214384,93915.0,93914.0,0.054346]
[1735690833331,0.00159784,93915.0,93914.0,0.054346]
[1735690835236,0.00159784,93915.0,93914.0,0.053346]
[1735690835444,0.00159784,93915.0,93914.0,0.054346]
[1735690837235,0.05494384,93915.0,93914.0,0.054346]
[1735690842849,0.05494384,93915.0,93914.0,0.053346]
[1735690843044,0.05494384,93915.0,93914.0,0.054346]
[1735690843945,0.00159784,93915.0,93914.0,0.054346]
[1735690846944,0.1,93925.0,93914.0,0.001]
[1735690847242,0.1,93925.0,93924.0,0.053341]
[1735690848543,0.15334,93925.0,93924.0,0.053341]
[1735690848932,0.15334,93925.0,93924.0,0.054341]
[1735690850436,0.15334,93925.0,93924.0,0.04260555]
[1735690851144,0.33054,93925.0,93924.0,0.04260555]
[1735690853443,0.2772,93925.0,93924.0,0.04260555]
[1735690854040,0.1,93925.0,93924.0,0.40340555]
[1735690854445,0.053336,93932.0,93924.0,0.40340555]
[1735690854645,0.053336,93932.0,93931.0,0.053337]
[1735690857948,0.053334,93936.0,93935.0,0.053333]
[1735690858153,0.3608,93940.0,93932.0,0.3608]
[1735690858341,0.414132,93940.0,93938.0,0.053333]
[1735690858547,0.414132,93940.0,93939.0,0.053332]
[1735690859056,0.3608,93940.0,93939.0,0.053332]
[1735690859241,0.05333,93944.0,93939.0,0.053332]
[1735690859447,0.05333,93944.0,93943.0,0.05333]
[1735690859648,0.053327,93948.0,93947.0,0.053327]
[1735690860173,0.05333,93943.0,93942.0,0.05333]
[1735690861159,0.23053,93943.0,93942.0,0.05333]
[1735690861750,0.23053,93943.0,93942.0,0.05433]
[1735690862348,0.23053,93943.0,93942.0,0.05333]
[1735690862548,0.23053,93943.0,93942.0,0.05433]
[1735690862749,0.23053,93943.0,93942.0,0.001]
[1735690862945,0.053342,93924.0,93921.0,0.3608]
[1735690863259,0.053342,93924.0,93921.0,0.36156]
[1735690863459,0.053342,93924.0,93921.0,0.36232]
[1735690863651,0.053342,93924.0,93921.0,0.36156]
[1735690864153,0.248637,93932.0,93931.0,0.053337]
[1735690864457,0.248637,93932.0,93928.0,0.053338]
[1735690864654,0.05334,93929.0,93928.0,0.053338]
[1735690866759,0.053342,93924.0,93923.0,0.053341]
[1735690866962,0.053338,93928.0,93927.0,0.053338]
[1735690867356,0.50056001,93940.0,93931.0,0.053337]
[1735690867656,0.00056001,93940.0,93931.0,0.414137]
[1735690867966,0.0989,93943.0,93931.0,0.414137]
[1735690868158,0.053332,93940.0,93938.0,0.053333]
[1735690868354,0.053332,93940.0,93931.0,0.36164]
[1735690868660,0.001,93939.0,93933.0,0.053335]
[1735690868963,0.001,93939.0,93938.0,0.053333]
[1735690869366,0.053327,93949.0,93948.0,0.053327]
[1735690869855,0.053324,93955.0,93949.0,0.053326]
[1735690870061,0.05332,93960.0,93959.0,0.05332]
[1735690870363,0.05332,93960.0,93959.0,0.41412]
[1735690871357,0.05332,93960.0,93959.0,0.3608]
[1735690871569,0.05432,93960.0,93959.0,0.3618]
[1735690872151,0.55432,93960.0,93959.0,0.001]
[1735690874058,0.05432,93960.0,93959.0,0.001]
[1735690874965,0.001,93960.0,93959.0,0.054321]
[1735690876262,0.0939,93974.0,93959.0,0.3618]
[1735690876562,0.57840001,93975.0,93974.0,0.053312]
[1735690876761,0.57784,93975.0,93974.0,0.053312]
[1735690878466,0.57784,93975.0,93974.0,0.054312]
[1735690878467,0.1,93975.0,93974.0,0.054312]
[1735690878965,0.1,93975.0,93974.0,0.055312]
[1735690880962,0.1,93975.0,93974.0,0.054312]
[1735690881266,0.1,93975.0,93974.0,0.055312]
[1735690881566,0.1,93975.0,93974.0,0.002]
[1735690881567,0.153312,93975.0,93974.0,0.002]
[1735690882268,0.05332,93960.0,93959.0,0.05408]
[1735690882456,0.05332,93960.0,93959.0,0.05332]
[1735690883662,0.05332,93960.0,93959.0,0.05432]
[1735690884078,0.053318,93965.0,93964.0,0.053317]
[1735690884376,0.05332,93960.0,93959.0,0.05432]
[1735690886269,0.05332,93960.0,93959.0,0.05332]
[1735690886872,0.05432,93960.0,93959.0,0.05332]
[1735690887463,0.05532,93960.0,93959.0,0.05332]
[1735690887867,0.053321,93959.0,93958.0,0.414121]
[1735690890475,0.054321,93959.0,93958.0,0.414121]
[1735690891168,0.053321,93959.0,93958.0,0.414121]
[1735690891363,0.054321,93959.0,93958.0,0.414121]
[1735690891973,0.053321,93959.0,93958.0,0.414121]
[1735690892172,0.054321,93959.0,93958.0,0.414121]
[1735690893080,0.054321,93959.0,93938.0,0.154032]
[1735690893081,0.053323,93956.0,93943.0,0.05413]
[1735690893274,0.053323,93956.0,93947.0,0.053327]
[1735690893573,0.553323,93956.0,93947.0,0.053327]
[1735690894081,0.553323,93956.0,93943.0,0.05333]
[1735690894274,0.553323,93956.0,93945.0,0.053328]
[1735690894481,0.553323,93956.0,93936.0,0.3608]
[1735690894672,0.553323,93956.0,93946.0,0.053328]
[1735690894873,0.554323,93956.0,93944.0,0.3608]
[1735690895073,0.554323,93956.0,93950.0,0.053326]
[1735690895470,0.054323,93956.0,93944.0,0.3608]
[1735690895870,0.054323,93956.0,93944.0,0.414129]
[1735690896176,0.554323,93956.0,93944.0,0.414129]
[1735690896381,0.554323,93956.0,93955.0,0.00259637]
[1735690897179,0.17085128,93956.0,93955.0,0.00259637]
[1735690897489,0.053329,93945.0,93944.0,0.3608]
[1735690898181,0.553329,93945.0,93944.0,0.3608]
[1735690898483,0.5,93944.0,93926.0,0.414899]
[1735690898685,0.053339,93927.0,93926.0,0.3608]
[1735690900181,0.05334,93926.0,93925.0,0.0015969]
[1735690900377,0.41414,93926.0,93925.0,0.0015969]
[1735690901592,0.41414,93926.0,93909.0,0.0923]
[1735690901593,0.053349,93913.0,93912.0,0.053347]
[1735690902690,0.053349,93913.0,93912.0,0.059347]
[1735690903189,0.053349,93913.0,93912.0,0.006]
[1735690903581,0.053349,93913.0,93912.0,0.059348]
[1735690903893,0.053349,93913.0,93912.0,0.062348]
[1735690905207,0.053349,93913.0,93912.0,0.009]
[1735690908796,0.053349,93913.0,93880.0,0.1888]
[1735690908797,0.053358,93894.0,93880.0,0.1888]
[1735690908992,0.053358,93894.0,93893.0,0.05495531]
[1735690910788,0.053358,93894.0,93893.0,0.05595531]
[1735690910983,0.553358,93894.0,93893.0,0.05595531]
[1735690911185,0.553358,93894.0,93893.0,0.00259731]
[1735690911491,0.053358,93894.0,93893.0,0.00259731]
[1735690911798,0.151158,93894.0,93893.0,0.00259731]
[1735690911988,0.651158,93894.0,93893.0,0.00259731]
[1735690912298,0.151158,93894.0,93893.0,0.00259731]
[1735690912994,0.151158,93894.0,93893.0,0.001]
[1735690914595,0.249058,93894.0,93893.0,0.001]
[1735690914894,0.249058,93894.0,93881.0,0.053365]
[1735690915202,0.053365,93882.0,93881.0,0.053365]
[1735690916688,0.056365,93882.0,93881.0,0.053365]
[1735690918091,0.053365,93882.0,93881.0,0.053365]
[1735690918296,0.054365,93882.0,93881.0,0.053365]
[1735690919402,0.004,93882.0,93879.0,0.3608]
[1735690919598,0.053366,93880.0,93879.0,0.3608]
[1735690921211,0.053366,93880.0,93879.0,0.414166]
[1735690921706,0.057366,93880.0,93879.0,0.414166]
[1735690922502,0.057366,93880.0,93879.0,0.3608]
[1735690923806,0.056366,93880.0,93879.0,0.3618]
[1735690924407,0.555366,93880.0,93879.0,0.3618]
[1735690924610,0.555366,93880.0,93879.0,0.3608]
[1735690925201,0.556366,93880.0,93879.0,0.3608]
[1735690927405,0.556366,93880.0,93879.0,0.414166]
[1735690927406,0.056366,93880.0,93879.0,0.414166]
[1735690928704,0.053366,93880.0,93879.0,0.414166]
[1735690928905,0.056366,93880.0,93879.0,0.414166]
[1735690930001,0.056366,93880.0,93879.0,0.3608]
[1735690932841,0.053366,93880.0,93879.0,0.3608]
[1735690933038,0.056366,93880.0,93879.0,0.3608]
[1735690933231,0.05337,93872.0,93871.0,0.3608]
[1735690933734,0.05337,93872.0,93871.0,0.414171]
[1735690933924,0.05337,93872.0,93871.0,0.3608]
[1735690934428,0.05337,93872.0,93871.0,0.3618]
[1735690938614,0.05337,93872.0,93871.0,0.001]
[1735690940902,0.053375,93863.0,93862.0,0.00159796]
[1735690942024,0.053375,93863.0,93862.0,0.00459796]
[1735690942225,0.053375,93863.0,93862.0,0.00959796]
[1735690944712,0.053375,93863.0,93862.0,0.008]
[1735690945421,0.053375,93863.0,93862.0,0.00344074]
[1735690945721,0.17538259,93863.0,93862.0,0.00344074]
[1735690947116,0.65354259,93863.0,93862.0,0.00344074]
[1735690947519,1.15354259,93863.0,93862.0,0.00344074]
[1735690947924,0.65354259,93863.0,93862.0,0.00344074]
[1735690949319,0.65354259,93863.0,93862.0,0.00237674]
[1735690950810,0.5,93861.0,93853.0,0.02422164]
[1735690951019,0.05338,93854.0,93853.0,0.02422164]
[1735690952927,0.05338,93854.0,93853.0,0.02822164]
[1735690953522,0.05438,93854.0,93853.0,0.03622164]
[1735690953928,0.05438,93854.0,93853.0,0.012]
[1735690956621,0.05338,93854.0,93853.0,0.012]
[1735690956825,0.05438,93854.0,93853.0,0.012]
[1735690961218,0.5,93849.0,93846.0,0.0008]
[1735690961428,0.414184,93847.0,93836.0,0.05339]
[1735690961833,0.05339,93837.0,93836.0,0.05339]
[1735690963531,0.05339,93837.0,93836.0,0.05939]
[1735690964625,0.05439,93837.0,93836.0,0.06539]
[1735690965734,0.05339,93837.0,93836.0,0.06039]
[1735690965940,0.05339,93837.0,93836.0,0.007]
[1735690966524,0.05339,93836.0,93835.0,0.29008501]
[1735690966831,0.05339,93836.0,93835.0,0.28932501]
[1735690967225,0.053396,93826.0,93825.0,0.0976]
[1735690968027,0.053399,93821.0,93820.0,0.415039]
[1735690968240,0.053399,93821.0,93820.0,0.42747555]
[1735690969633,0.053399,93821.0,93820.0,0.43147555]
[1735690970832,0.053399,93821.0,93820.0,0.3648]
[1735690971038,0.053399,93821.0,93820.0,0.004]
[1735690971241,0.001,93821.0,93820.0,0.001]
[1735690971741,0.054399,93821.0,93820.0,0.001]
[1735690971930,0.054399,93821.0,93820.0,0.00072468]
[1735690972134,0.053407,93807.0,93806.0,0.0948]
[1735690973438,0.053407,93807.0,93806.0,0.1008]
[1735690973633,0.36378663,93816.0,93806.0,0.1008]
[1735690974034,0.053407,93807.0,93806.0,0.1008]
[1735690974341,0.054407,93807.0,93806.0,0.1048]
[1735690974945,0.053407,93807.0,93806.0,0.1048]
[1735690975148,0.053407,93807.0,93806.0,0.158207]
[1735690975538,0.054407,93807.0,93806.0,0.158207]
[1735690975844,0.054407,93807.0,93806.0,0.157207]
[1735690976646,0.054407,93807.0,93806.0,0.156207]
[1735690977850,0.054407,93807.0,93806.0,0.157207]
[1735690980365,0.054407,93807.0,93806.0,0.062407]
[1735690995082,0.054407,93807.0,93806.0,0.009]
[1735690995280,0.054407,93807.0,93806.0,0.062407]
[1735690997684,0.054407,93807.0,93806.0,0.02393187]